bitfinex/quotes_SOLUSD_20260310
["timestamp","ask_amount","ask_price","bid_price","bid_amount"]
[1773152714694,11.21980101,85.6,85.563,2.97772678]
[1773152715202,11.21980101,85.58,85.562,11.68743133]
[1773152715385,11.21980101,85.58,85.527,3.69383402]
[1773152715386,11.21980101,85.58,85.557,11.68799657]
[1773152715584,11.21980101,85.57,85.543,11.69002723]
[1773152715777,11.21980101,85.58,85.544,2.97772678]
[1773152716182,11.21980101,85.57,85.543,11.69002723]
[1773152716505,11.21980101,85.57,85.543,14.66775401]
[1773152717217,2.9686141,85.59,85.544,2.97772678]
[1773152717387,14.18841511,85.59,85.551,2.97772678]
[1773152717583,11.21980101,85.59,85.56,11.21980101]
[1773152717896,11.21980101,85.6,85.561,2.97772678]
[1773152718690,11.21980101,85.6,85.562,40.90600967]
[1773152718894,11.21980101,85.6,85.563,2.97772678]
[1773152719810,22.90077295,85.61,85.571,2.97772678]
[1773152720129,69.95575037,85.769,85.581,2.97772678]
[1773152720130,11.21980101,85.62,85.581,2.97772678]
[1773152720483,11.21980101,85.59,85.562,43.88373645]
[1773152721112,11.21980101,85.59,85.562,40.90600967]
[1773152721309,11.21980101,85.59,85.563,2.97772678]
[1773152721697,11.21980101,85.6,85.563,2.97772678]
[1773152722132,11.21980101,85.59,85.563,2.97772678]
[1773152722426,11.21980101,85.59,85.562,11.68743133]
[1773152722587,11.21980101,85.59,85.563,2.97772678]
[1773152722981,11.21980101,85.6,85.563,2.97772678]
[1773152723205,11.21980101,85.59,85.565,2.97772678]
[1773152723790,11.21980101,85.59,85.564,40.90505352]
[1773152723791,11.21980101,85.59,85.564,11.68715815]
[1773152724213,11.21980101,85.6,85.565,2.97772678]
[1773152724795,22.90217047,85.6,85.565,2.97772678]
[1773152724996,11.21980101,85.59,85.565,2.97772678]
[1773152725190,11.21980101,85.59,85.488,48.14032705]
[1773152725191,11.21980101,85.61,85.571,2.97772678]
[1773152725784,14.18841511,85.61,85.571,2.97772678]
[1773152726910,14.18841511,85.61,85.573,2.97772678]
[1773152728020,11.21980101,85.61,85.573,2.97772678]
[1773152728207,22.8994451,85.62,85.581,2.97772678]
[1773152728586,3.69383402,85.627,85.591,2.97772678]
[1773152728787,2.9686141,85.619,85.592,11.68333489]
[1773152729012,2.9686141,85.609,85.58,29.21210381]
[1773152729507,11.21980101,85.61,85.581,2.97772678]
[1773152731188,3.69383402,85.627,85.582,40.89645018]
[1773152731394,3.69383402,85.627,85.591,2.97772678]
[1773152731606,11.21980101,85.62,85.591,2.97772678]
[1773152731817,11.21980101,85.61,85.582,43.87417696]
[1773152732112,11.21980101,85.61,85.583,2.97772678]
[1773152732802,11.21980101,85.62,85.583,2.97772678]
[1773152733590,11.21980101,85.62,85.585,2.86192511]
[1773152734413,11.21980101,85.62,85.591,2.86192511]
[1773152735022,29.19305745,85.637,85.584,40.89549447]
[1773152735023,11.21980101,85.64,85.601,2.86192511]
[1773152735317,11.21980101,85.64,85.611,2.86192511]
[1773152735820,11.21980101,85.64,85.612,11.68060552]
[1773152736113,11.67692289,85.639,85.612,11.68060552]
[1773152736496,11.21980101,85.64,85.613,2.86192511]
[1773152737135,3.69383402,85.66,85.613,2.86192511]
[1773152737417,11.21980101,85.65,85.613,2.86192511]
[1773152737997,11.21980101,85.65,85.615,2.86192511]
[1773152738195,11.21980101,85.66,85.621,2.86192511]
[1773152738418,11.21980101,85.67,85.631,2.86192511]
[1773152739514,11.21980101,85.67,85.632,40.87257099]
[1773152739710,11.21980101,85.67,85.633,2.86192511]
[1773152740105,11.21980101,85.66,85.633,2.86192511]
[1773152740716,11.67283381,85.669,85.633,2.86192511]
[1773152741017,11.21980101,85.66,85.633,2.86192511]
[1773152741234,3.0053017,85.668,85.635,2.86192511]
[1773152741928,11.21980101,85.66,85.635,2.86192511]
[1773152742808,11.65922419,85.769,85.651,2.86192511]
[1773152743014,3.0053017,85.719,85.681,2.86192511]
[1773152743427,11.21980101,85.72,85.681,2.86192511]
[1773152743831,7.37594826,85.768,85.691,2.86192511]
[1773152744033,11.21980101,85.72,85.691,2.86192511]
[1773152744931,11.21980101,85.72,85.693,2.86192511]
[1773152745231,7.37594826,85.768,85.701,2.86192511]
[1773152745436,3.0053017,85.742,85.701,2.86192511]
[1773152745616,11.21980101,85.73,85.701,2.86192511]
[1773152745809,11.21980101,85.76,85.721,2.86192511]
[1773152746009,7.37594826,85.768,85.731,2.86192511]
[1773152746317,11.21980101,85.77,85.741,2.86192511]
[1773152746519,11.21980101,85.77,85.731,2.9008555]
[1773152746717,11.21980101,85.78,85.741,2.9008555]
[1773152746922,11.21980101,85.78,85.74,11.21980101]
[1773152746923,11.21980101,85.78,85.743,2.9008555]
[1773152747315,11.21980101,85.76,85.742,8.74888413]
[1773152747531,11.21980101,85.75,85.723,11.66548067]
[1773152747935,11.21980101,85.75,85.723,40.82918236]
[1773152749426,11.21980101,85.75,85.714,2.9008555]
[1773152750025,11.21980101,85.74,85.713,40.83394583]
[1773152751531,1.58573736,85.767,85.711,2.9008555]
[1773152751738,11.21980101,85.76,85.721,2.9008555]
[1773152752929,1.58573736,85.767,85.731,2.9008555]
[1773152753138,1.58573736,85.767,85.705,192.5208564]
[1773152753139,11.21980101,85.79,85.751,2.9008555]
[1773152753316,1.59750032,85.797,85.705,285.86430192]
[1773152753317,1.59750032,85.797,85.762,43.71147091]
[1773152753631,1.59750032,85.797,85.763,2.9008555]
[1773152753930,11.21980101,85.78,85.752,29.15374041]
[1773152754132,11.21980101,85.78,85.731,93.31491418]
[1773152754133,11.21980101,85.79,85.754,2.9008555]
[1773152754512,11.21980101,85.79,85.753,40.8148986]
[1773152754513,11.21980101,85.78,85.753,40.8148986]
[1773152754727,11.21980101,85.78,85.753,11.6613996]
[1773152755035,1.60709392,85.78,85.753,11.6613996]
[1773152755329,12.82689493,85.78,85.753,11.6613996]
[1773152755527,12.82689493,85.78,85.745,40.81870662]
[1773152755725,1.62540041,85.779,85.745,40.81870662]
[1773152756830,1.62325209,85.79,85.746,2.9008555]
[1773152757037,12.8430531,85.79,85.75,14.12065651]
[1773152757709,12.8430531,85.79,85.751,43.71670604]
[1773152757912,1.62110361,85.789,85.751,43.71670604]
[1773152758134,7.25369547,85.802,85.761,2.9008555]
[1773152758135,3.69383402,85.797,85.761,2.9008555]
[1773152758434,1.62110361,85.8,85.761,2.9008555]
[1773152758621,1.62110361,85.8,85.751,99.12420846]
[1773152758622,11.21980101,85.8,85.77,11.21980101]
[1773152758833,11.21980101,85.8,85.771,2.9008555]
[1773152759833,11.21980101,85.8,85.773,2.9008555]
[1773152760833,0.3130388,85.789,85.763,11.66003987]
[1773152761035,11.21980101,85.78,85.763,11.66003987]
[1773152761420,0.3130388,85.789,85.754,40.81442264]
[1773152761620,11.21980101,85.78,85.754,40.81442264]
[1773152761934,11.21980101,85.78,85.755,3.09537956]
[1773152762117,11.21980101,85.78,85.754,40.81442264]
[1773152762724,11.21980101,85.78,85.755,3.09537956]
[1773152762929,11.21980101,85.79,85.755,3.09537956]
[1773152763644,7.25369547,85.802,85.754,11.66126361]
[1773152763645,11.21980101,85.78,85.754,11.66126361]
[1773152763932,0.30603302,85.789,85.75,14.32134929]
[1773152764136,0.30603302,85.789,85.751,3.10154828]
[1773152764137,11.21980101,85.78,85.751,3.10154828]
[1773152764843,0.30603302,85.789,85.751,3.10154828]
[1773152765145,11.21980101,85.78,85.751,3.10154828]
[1773152765345,11.21980101,85.78,85.745,11.6624876]
[1773152765547,11.21980101,85.76,85.745,11.6624876]
[1773152765725,0.30448244,85.769,85.733,29.16023111]
[1773152765930,11.21980101,85.76,85.733,29.16023111]
[1773152766125,0.30448244,85.769,85.733,29.16023111]
[1773152766336,0.30448244,85.769,85.734,3.10154828]
[1773152766540,11.21980101,85.77,85.741,3.10154828]
[1773152767350,11.21980101,85.79,85.751,3.10154828]
[1773152767731,11.1906871,85.78,85.752,11.66153559]
[1773152767931,7.25369547,85.802,85.753,3.10154828]
[1773152768231,11.1906871,85.81,85.77,11.1906871]
[1773152768532,11.1906871,85.81,85.772,3.10154828]
[1773152768730,11.1906871,85.8,85.772,3.10154828]
[1773152769125,0.29842321,85.824,85.79,14.29223538]
[1773152769726,0.2,85.83,85.801,3.10154828]
[1773152770026,0.2,85.83,85.757,3.69383402]
[1773152770027,46.5663082,85.9,85.82,11.1906871]
[1773152770028,0.33232488,85.852,85.82,11.1906871]
[1773152770232,11.1906871,85.86,85.821,3.10154828]
[1773152770650,11.1906871,85.85,85.81,14.29223538]
[1773152770824,11.1906871,85.85,85.811,3.10154828]
[1773152771028,0.34393278,85.859,85.821,3.10154828]
[1773152771345,11.1906871,85.86,85.831,3.10154828]
[1773152771853,11.1906871,85.86,85.832,11.65066641]
[1773152772034,11.1906871,85.86,85.833,3.10154828]
[1773152772224,7.21063015,85.864,85.841,3.10154828]
[1773152772552,7.21063015,85.864,85.833,3.10154828]
[1773152772846,11.1906871,85.87,85.841,3.10154828]
[1773152773229,0.41794972,85.892,85.841,3.10154828]
[1773152773435,11.1906871,85.87,85.841,3.10154828]
[1773152773835,11.1906871,85.88,85.843,3.10154828]
[1773152774046,11.1906871,85.87,85.843,3.10154828]
[1773152774343,11.1906871,85.88,85.85,11.1906871]
[1773152774548,11.1906871,85.88,85.851,3.10154828]
[1773152775455,0.41325681,85.899,85.851,3.10154828]
[1773152775747,0.268177,85.904,85.871,3.10154828]
[1773152776046,11.1906871,85.9,85.873,3.10154828]
[1773152776240,0.268177,85.904,85.873,3.10154828]
[1773152776426,0.4085658,85.942,85.891,3.10154828]
[1773152776626,11.1906871,85.94,85.901,3.10154828]
[1773152776823,11.1906871,85.98,85.911,3.10154828]
[1773152776824,0.4085658,85.954,85.911,3.10154828]
[1773152777026,0.4085658,85.954,85.872,285.30836591]
[1773152777027,0.4085658,85.943,85.9,3.10154828]
[1773152777249,11.1906871,85.94,85.901,3.10154828]
[1773152777450,11.1906871,85.94,85.872,285.30836591]
[1773152777451,11.1906871,85.94,85.911,3.10154828]
[1773152777944,11.63616053,85.939,85.909,11.64020336]
[1773152778443,0.42245709,85.968,85.921,3.10154828]
[1773152778641,11.1906871,85.95,85.921,3.10154828]
[1773152778841,11.1906871,85.96,85.921,3.10154828]
[1773152779045,0.42245709,85.968,85.931,3.10154828]
[1773152779242,11.3906871,85.97,85.941,3.10154828]
[1773152779454,0.2,85.97,85.941,3.10154828]
[1773152779650,11.3906871,85.97,85.941,3.10154828]
[1773152780034,11.3906871,85.97,85.942,11.63575434]
[1773152780934,11.1906871,85.95,85.922,3.10154828]
[1773152781154,11.1906871,85.96,85.928,3.10154828]
[1773152781330,11.1906871,85.96,85.93,11.1906871]
[1773152781653,11.1906871,85.96,85.93,14.29223538]
[1773152781849,11.1906871,85.96,85.931,3.10154828]
[1773152782062,11.1906871,85.96,85.932,11.63710841]
[1773152782230,0.2,85.97,85.911,3.10154828]
[1773152782231,11.1906871,85.95,85.911,3.10154828]
[1773152782646,11.1906871,85.95,85.921,3.10154828]
[1773152783452,11.1906871,85.96,85.93,11.1906871]
[1773152783652,11.1906871,85.96,85.888,192.11065571]
[1773152783653,0.2,85.97,85.941,3.10154828]
[1773152784044,11.62750136,86.003,85.963,3.10154828]
[1773152784242,11.62750136,86.003,85.951,3.10154828]
[1773152784243,11.1906871,85.99,85.951,3.10154828]
[1773152784642,11.1906871,85.99,85.96,11.1906871]
[1773152785038,11.1906871,85.99,85.922,133.84232208]
[1773152785039,0.41472626,86.034,85.981,3.10154828]
[1773152785242,11.1906871,86.01,85.981,3.10154828]
[1773152785442,11.3906871,86.02,85.981,3.10154828]
[1773152785641,11.1906871,86.01,85.981,3.10154828]
[1773152786067,11.1906871,86.0,85.971,3.10154828]
[1773152786240,0.2,86.02,85.922,139.66155348]
[1773152786241,11.1906871,85.99,85.961,3.10154828]
[1773152786442,11.1906871,85.98,85.95,3.10154828]
[1773152786761,11.1906871,85.97,85.95,3.10154828]
[1773152786958,11.1906871,85.98,85.95,3.10154828]
[1773152787347,11.1906871,85.97,85.95,3.10154828]
[1773152787557,11.1906871,85.97,85.94,3.10154828]
[1773152787755,11.1906871,85.98,85.941,3.10154828]
[1773152787962,11.1906871,85.98,85.951,3.10154828]
[1773152788146,11.1906871,85.98,85.928,113.16864044]
[1773152788147,11.1906871,85.97,85.94,11.1906871]
[1773152788453,11.1906871,85.97,85.94,14.29223538]
[1773152788854,11.1906871,86.0,85.961,3.10154828]
[1773152789069,46.47755712,86.064,85.991,3.10154828]
[1773152789070,11.62347927,86.033,85.991,3.10154828]
[1773152789365,46.47159278,86.075,85.991,3.10154828]
[1773152789366,23.01591389,86.02,85.991,3.10154828]
[1773152789546,11.3906871,86.02,85.991,3.10154828]
[1773152789867,11.62533858,86.019,85.991,3.10154828]
[1773152790445,11.62533858,86.019,85.988,11.62947811]
[1773152790986,11.3906871,86.02,86.001,3.10154828]
[1773152790987,0.2,86.02,86.001,3.10154828]
[1773152791142,22.81331211,86.04,86.001,3.10154828]
[1773152791340,58.08882356,86.076,85.988,40.70330236]
[1773152791341,11.1906871,86.05,86.011,3.10154828]
[1773152791644,11.1906871,86.05,85.988,145.36906966]
[1773152791645,11.1906871,86.03,86.0,3.10154828]
[1773152791847,11.1906871,86.02,85.991,3.10154828]
[1773152792249,11.1906871,86.01,85.988,11.62947811]
[1773152792547,0.60991232,86.025,85.989,3.10154828]
[1773152792753,11.1906871,86.02,85.989,3.10154828]
[1773152792948,0.60991232,86.025,85.989,3.10154828]
[1773152793163,11.1906871,86.01,85.989,3.10154828]
[1773152793370,11.1906871,86.01,85.969,29.08024985]
[1773152793573,11.1906871,86.01,85.971,3.10154828]
[1773152793771,40.68111814,86.035,85.991,3.20491935]
[1773152793987,11.1906871,86.03,85.991,3.20491935]
[1773152794466,41.28401898,86.035,85.993,3.20491935]
[1773152794467,11.1906871,86.02,85.993,3.20491935]
[1773152794665,11.1906871,86.02,85.953,3.20491935]
[1773152794843,11.1906871,86.02,85.981,3.20491935]
[1773152795047,11.1906871,86.01,85.981,3.20491935]
[1773152795470,11.1906871,86.01,85.949,40.72182339]
[1773152795471,11.1906871,85.99,85.953,3.20491935]
[1773152795651,11.1906871,85.99,85.96,11.1906871]
[1773152795853,11.1906871,85.99,85.961,3.20491935]
[1773152796060,11.1906871,86.0,85.961,3.20491935]
[1773152796550,11.62939445,85.989,85.961,3.20491935]
[1773152796970,11.62939445,85.989,85.951,3.20491935]
[1773152797157,11.1906871,85.97,85.94,3.20491935]
[1773152797359,11.1906871,85.97,85.944,11.63535945]
[1773152797558,11.1906871,85.96,85.94,3.20491935]
[1773152797959,0.59604634,85.949,85.907,3.20491935]
[1773152798164,11.1906871,85.94,85.907,3.20491935]
[1773152798565,11.1906871,85.93,85.889,3.20491935]
[1773152798867,11.1906871,85.93,85.877,28.974746]
[1773152798868,10.63748178,85.91,85.881,3.20491935]
[1773152799049,11.1906871,85.9,85.881,3.20491935]
[1773152799248,11.1906871,85.9,85.812,7.22125379]
[1773152799249,11.1906871,85.9,85.87,3.20491935]
[1773152799562,40.72656186,85.939,85.881,3.20491935]
[1773152799764,11.1906871,85.91,85.881,3.20491935]
[1773152800162,11.1906871,85.9,85.871,11.64537503]
[1773152800371,11.1906871,85.88,85.85,3.20491935]
[1773152800558,11.1906871,85.88,85.84,11.1906871]
[1773152800559,11.1906871,85.88,85.852,3.20491935]
[1773152800754,11.64429022,85.879,85.852,3.20491935]
[1773152800985,11.1906871,85.87,85.852,3.20491935]
[1773152801351,11.1906871,85.88,85.852,3.20491935]
[1773152801568,11.1906871,85.89,85.852,3.20491935]
[1773152801773,11.1906871,85.87,85.84,3.20491935]
[1773152802370,11.1906871,85.88,85.841,3.20491935]
[1773152802967,11.1906871,85.88,85.804,46.61738345]
[1773152802968,11.1906871,85.87,85.843,3.20491935]
[1773152804361,40.75501577,85.879,85.83,3.20491935]
[1773152804362,11.1906871,85.85,85.83,3.20491935]
[1773152804663,11.1906871,85.85,85.814,3.20491935]
[1773152805095,11.1906871,85.85,85.813,40.78636103]
[1773152805096,22.83895374,85.85,85.816,3.20491935]
[1773152805269,50.2682911,85.884,85.816,3.20491935]
[1773152805270,11.1906871,85.84,85.816,3.20491935]
[1773152806283,0.48828123,85.86,85.816,3.20491935]
[1773152806284,11.1906871,85.85,85.816,3.20491935]
[1773152806789,11.1906871,85.86,85.821,3.15698494]
[1773152807082,11.1906871,85.85,85.823,3.15698494]
[1773152807480,11.1906871,85.87,85.831,3.15698494]
[1773152807880,11.6432056,85.887,85.817,11.65269312]
[1773152807881,11.1906871,85.84,85.817,11.65269312]
[1773152808190,11.1906871,85.85,85.818,3.15698494]
[1773152808768,0.48101819,85.869,85.818,3.15698494]
[1773152808985,11.1906871,85.85,85.818,3.15698494]
[1773152809186,11.1906871,85.87,85.831,3.15698494]
[1773152809493,11.64266337,85.891,85.819,11.65243127]
[1773152809494,11.64266337,85.891,85.841,3.15698494]
[1773152809795,11.1906871,85.89,85.851,3.15698494]
[1773152810167,11.64173142,85.898,85.861,3.15698494]
[1773152811185,29.1005944,85.909,85.822,3.69383402]
[1773152811186,11.63981748,85.912,85.871,3.15698494]
[1773152811373,11.1906871,85.9,85.871,3.15698494]
[1773152812976,40.73936119,85.912,85.871,3.15698494]
[1773152812977,11.1906871,85.91,85.871,3.15698494]
[1773152813375,11.1906871,85.9,85.873,3.15698494]
[1773152813993,11.1906871,85.91,85.873,3.15698494]
[1773152814897,11.1906871,85.91,85.872,40.75833798]
[1773152814898,11.63987025,85.912,85.881,3.15698494]
[1773152815678,11.63987025,85.912,85.88,11.1906871]
[1773152815679,11.63913985,85.918,85.883,3.15698494]
[1773152815880,11.63913985,85.918,85.88,11.1906871]
[1773152815881,11.1906871,85.91,85.877,11.64444062]
[1773152816890,11.1906871,85.9,85.863,3.15698494]
[1773152817097,11.1906871,85.9,85.864,3.15698494]
[1773152817483,0.45782962,85.91,85.864,3.15698494]
[1773152817484,11.1906871,85.89,85.864,3.15698494]
[1773152817790,11.1906871,85.9,85.866,3.15698494]
[1773152819591,11.1906871,85.89,85.866,3.15698494]
[1773152819791,11.1906871,85.89,85.86,11.64684401]
[1773152820196,11.1906871,85.9,85.861,3.15698494]
[1773152821004,11.1906871,85.9,85.828,46.60443091]
[1773152821005,0.44759942,85.879,85.84,11.1906871]
[1773152821189,11.1906871,85.87,85.841,11.6494449]
[1773152821507,11.1906871,85.88,85.842,3.15698494]
[1773152821681,46.55360015,85.923,85.853,3.15698494]
[1773152821682,11.1906871,85.89,85.853,3.15698494]
[1773152822294,40.74125808,85.908,85.861,3.15698494]
[1773152822509,11.1906871,85.92,85.881,3.15698494]
[1773152823003,11.1906871,85.91,85.852,40.767833]
[1773152823219,11.1906871,85.9,85.871,3.15698494]
[1773152823512,11.1906871,85.89,85.861,3.15698494]
[1773152823715,11.1906871,85.89,85.862,11.6465957]
[1773152824208,11.64293448,85.889,85.863,3.10548207]
[1773152824902,11.1906871,85.88,85.863,3.10548207]
[1773152825100,11.1906871,85.88,85.841,29.12357143]
[1773152825304,11.62851045,85.87,85.83,11.1906871]
[1773152825612,11.1906871,85.87,85.831,3.10548207]
[1773152826109,11.1906871,85.86,85.833,3.10548207]
[1773152826310,11.1906871,85.87,85.833,3.10548207]
[1773152826506,11.1906871,85.86,85.833,3.10548207]
[1773152827019,40.75501577,85.879,85.827,11.65124302]
[1773152827020,11.1906871,85.85,85.827,11.65124302]
[1773152827506,11.1906871,85.85,85.82,11.65228317]
[1773152827685,11.1906871,85.85,85.756,46.6435977]
[1773152827686,11.17474419,85.83,85.805,3.10548207]
[1773152827890,11.17474419,85.83,85.801,11.65487581]
[1773152828209,0.43020805,85.839,85.795,14.76117296]
[1773152828210,11.17474419,85.82,85.795,14.76117296]
[1773152828615,12.08128169,85.829,85.788,11.65653219]
[1773152828616,11.17474419,85.81,85.788,11.65653219]
[1773152828815,11.17474419,85.82,85.788,11.65653219]
[1773152829311,41.2089658,85.829,85.789,3.10548207]
[1773152829508,11.17474419,85.81,85.789,3.10548207]
[1773152829687,11.17474419,85.81,85.788,11.65653219]
[1773152829883,40.77875775,85.829,85.789,3.10548207]
[1773152829884,11.17474419,85.82,85.789,3.10548207]
[1773152830105,11.65107364,85.829,85.793,3.10548207]
[1773152830489,11.17474419,85.82,85.787,11.65667712]
[1773152830812,40.77875775,85.829,85.781,3.10548207]
[1773152830813,0.42262307,85.819,85.781,3.10548207]
[1773152831007,11.17474419,85.82,85.781,3.10548207]
[1773152831712,11.65107364,85.829,85.791,3.10548207]
[1773152832209,11.17474419,85.82,85.793,3.10548207]
[1773152832415,11.17474419,85.81,85.787,11.65672299]
[1773152832590,11.17474419,85.81,85.732,46.65700957]
[1773152832591,11.17474419,85.8,85.771,3.10548207]
[1773152833015,11.17474419,85.81,85.771,3.10548207]
[1773152833215,11.65243127,85.819,85.781,3.10548207]
[1773152833913,11.17474419,85.81,85.781,3.10548207]
[1773152834209,11.17474419,85.81,85.745,3.69383402]
[1773152834210,11.17474419,85.8,85.761,3.10548207]
[1773152834694,11.65417618,85.807,85.771,3.10548207]
[1773152834895,29.12737714,85.83,85.781,3.10548207]
[1773152835088,11.17474419,85.82,85.781,3.10548207]
[1773152835292,11.17474419,85.82,85.791,3.10548207]
[1773152835904,11.65107364,85.829,85.791,3.10548207]
[1773152836103,11.17474419,85.82,85.791,3.10548207]
[1773152836415,11.17474419,85.83,85.791,3.10548207]
[1773152836611,0.40754693,85.855,85.801,3.10548207]
[1773152836800,11.17474419,85.84,85.801,3.10548207]
[1773152836995,11.17474419,85.84,85.803,3.10548207]
[1773152837197,11.64971632,85.839,85.803,3.10548207]
[1773152837397,11.17474419,85.85,85.81,11.17474419]
[1773152837605,11.17474419,85.85,85.811,3.10548207]
[1773152838118,11.64768094,85.854,85.811,3.10548207]
[1773152838119,11.17474419,85.84,85.811,3.10548207]
[1773152839102,11.64851742,85.848,85.813,3.10548207]
[1773152839518,11.64851742,85.848,85.812,40.78683633]
[1773152839519,22.82169048,85.86,85.821,3.10548207]
[1773152839817,11.17474419,85.85,85.821,3.10548207]
[1773152840821,11.17474419,85.85,85.812,40.78683633]
[1773152840822,11.17474419,85.84,85.812,14.75886388]
[1773152841000,11.17474419,85.85,85.813,3.10548207]
[1773152841196,0.39756778,85.877,85.821,3.10548207]
[1773152841397,11.17474419,85.86,85.821,3.10548207]
[1773152841817,11.17474419,85.87,85.831,3.10548207]
[1773152843509,11.17474419,85.86,85.833,3.10548207]
[1773152843722,11.17474419,85.85,85.82,3.10548207]
[1773152844125,11.17474419,85.84,85.81,3.10548207]
[1773152844424,11.56486621,85.85,85.812,3.10548207]
[1773152844720,11.17474419,85.84,85.812,3.10548207]
[1773152845134,0.39012202,85.85,85.811,11.65351761]
[1773152845135,11.17474419,85.83,85.811,11.65351761]
[1773152845316,11.17474419,85.84,85.811,11.65351761]
[1773152845499,11.17474419,85.84,85.802,32.24224823]
[1773152845500,11.64835932,85.849,85.814,3.10548207]
[1773152845705,11.17474419,85.84,85.814,3.10548207]
[1773152845924,11.17474419,85.83,85.808,11.6538116]
[1773152847110,11.17474419,85.84,85.809,3.10548207]
[1773152847929,11.17474419,85.85,85.811,3.10548207]
[1773152849325,11.17474419,85.86,85.821,3.10548207]
[1773152849517,11.64578189,85.868,85.831,3.10548207]
[1773152849712,11.17474419,85.86,85.831,3.10548207]
[1773152849920,11.17474419,85.85,85.823,29.12963944]
[1773152850158,11.17474419,85.85,85.769,81.64687972]
[1773152850159,12.02233482,85.859,85.827,11.65123579]
[1773152850640,11.64700264,85.859,85.827,14.75671786]
[1773152851626,11.64700264,85.859,85.824,29.12938105]
[1773152851627,11.17474419,85.87,85.831,3.10548207]
[1773152852422,0.3679891,85.869,85.831,3.10548207]
[1773152852618,0.3679891,85.869,85.821,11.65215972]
[1773152852619,11.17474419,85.85,85.821,14.75764179]
[1773152852830,0.3679891,85.859,85.821,14.75764179]
[1773152853011,11.17474419,85.85,85.821,14.75764179]
[1773152853321,11.17474419,85.86,85.822,3.10548207]
[1773152853531,11.17474419,85.85,85.824,3.10548207]
[1773152853728,11.17474419,85.86,85.824,3.10548207]
[1773152853929,11.17474419,85.86,85.823,40.78160865]
[1773152853930,11.64429022,85.879,85.841,3.0889394]
[1773152854132,11.17474419,85.87,85.824,3.0889394]
[1773152854324,11.17474419,85.87,85.823,40.78160865]
[1773152854325,11.17474419,85.87,85.831,3.0889394]
[1773152855545,11.17474419,85.87,85.833,3.0889394]
[1773152855841,11.64564627,85.869,85.833,3.0889394]
[1773152856423,11.64564627,85.869,85.832,11.65066641]
[1773152856424,11.17474419,85.86,85.832,11.65066641]
[1773152856642,11.17474419,85.86,85.833,3.0889394]
[1773152857036,11.64564627,85.869,85.833,3.0889394]
[1773152857345,11.17474419,85.86,85.833,3.0889394]
[1773152857550,11.64700264,85.859,85.834,11.65039494]
[1773152858046,11.17474419,85.85,85.823,3.0889394]
[1773152858445,11.17474419,85.85,85.824,14.74069182]
[1773152858829,0.35610206,85.858,85.824,14.74069182]
[1773152859444,11.17474419,85.85,85.824,3.0889394]
[1773152859752,11.17474419,85.85,85.814,3.0889394]
[1773152860846,11.64835932,85.849,85.816,3.0889394]
[1773152861149,11.17474419,85.85,85.816,3.0889394]
[1773152862249,11.64835932,85.849,85.816,3.0889394]
[1773152863049,11.64835932,85.849,85.815,40.78541047]
[1773152863050,11.64835932,85.849,85.818,3.0889394]
[1773152863851,11.64835932,85.849,85.821,3.0889394]
[1773152864432,11.17474419,85.86,85.821,3.0889394]
[1773152864632,11.64608647,85.866,85.831,3.0889394]
[1773152864939,0.3392245,85.867,85.831,3.0889394]
[1773152865159,29.10801732,85.887,85.841,3.0889394]
[1773152865336,11.17474419,85.89,85.851,3.0889394]
[1773152865543,0.33682978,85.909,85.871,3.0889394]
[1773152866148,11.64008846,85.91,85.881,3.0889394]
[1773152866355,22.81483265,85.91,85.881,3.0889394]
[1773152867052,23.14951508,85.91,85.871,3.0889394]
[1773152867259,22.81483265,85.91,85.873,3.0889394]
[1773152867455,22.81483265,85.91,85.881,3.0889394]
[1773152867945,0.33229317,85.909,85.872,11.64523942]
[1773152868353,11.64035945,85.908,85.875,3.0889394]
[1773152868555,0.33229317,85.918,85.881,3.0889394]
[1773152868556,11.6391401,85.917,85.881,3.0889394]
[1773152868938,11.6385386,85.922,85.891,3.0889394]
[1773152870455,0.32752719,85.919,85.882,3.0889394]
[1773152870633,0.32752719,85.919,85.883,11.64374788]
[1773152870634,11.63900463,85.918,85.883,11.64374788]
[1773152870840,11.17474419,85.91,85.883,14.73268728]
[1773152871047,11.63900463,85.918,85.884,3.0889394]
[1773152871654,11.17474419,85.91,85.883,11.64374788]
[1773152871846,11.49752219,85.91,85.883,11.64374788]
[1773152872048,11.49752219,85.91,85.876,3.0889394]
[1773152872688,11.64022395,85.909,85.881,11.64401904]
[1773152872854,11.64022395,85.909,85.881,14.73295844]
[1773152873038,11.64022395,85.909,85.882,3.0889394]
[1773152873449,11.17474419,85.93,85.891,3.0889394]
[1773152873759,0.31804569,85.929,85.891,3.0889394]
[1773152873966,11.17474419,85.92,85.891,3.0889394]
[1773152874340,40.72987943,85.932,85.891,3.0889394]
[1773152874545,11.17474419,85.93,85.891,3.0889394]
[1773152874948,11.63751469,85.929,85.892,11.64252782]
[1773152875159,11.63751469,85.929,85.893,3.0889394]
[1773152875648,11.17474419,85.92,85.893,3.0889394]
[1773152875949,41.04463174,85.929,85.893,3.0889394]
[1773152877446,11.17474419,85.93,85.895,3.0889394]
[1773152877647,11.63690053,85.934,85.901,3.0889394]
[1773152877849,11.17474419,85.93,85.901,3.0889394]
[1773152878663,40.72899446,85.934,85.877,3.0889394]
[1773152878664,0.30628919,85.919,85.877,3.0889394]
[1773152878867,0.30628919,85.899,85.86,11.17474419]